[Event "Titled Tuesday Blitz November 07 Early 2023"]
[White "Shuvalov, Evgenij"]
[Black "Thomforde-Toates, Noah"]
[WhiteFideId "4187237"]
[BlackFideId "30951992"]
[WhiteElo "2433"]
[BlackElo "2644"]
[Result "1/2-1/2"]
[Round "3"]
[TimeControl "180+1"]
[Date "2023.11.07"]
[WhiteClock "0:00:13"]
[BlackClock "0:00:19"]
[Board "121"]

1. d4 {[%clk 0:03:00]}  Nf6 {[%clk 0:03:00]} 2. c4 {[%clk 0:03:00]}  g6 {[%clk 0:03:00]} 3. Nc3 {[%clk 0:03:00]}  Bg7 {[%clk 0:03:01]} 4. e4 {[%clk 0:03:00]}  d6 {[%clk 0:03:01]} 5. Nf3 {[%clk 0:03:00]}  O-O {[%clk 0:03:01]} 6. Be2 {[%clk 0:02:59]}  e5 {[%clk 0:03:01]} 7. O-O {[%clk 0:02:59]}  exd4 {[%clk 0:03:01]} 8. Nxd4 {[%clk 0:03:00]}  Re8 {[%clk 0:03:02]} 9. f3 {[%clk 0:03:00]}  c6 {[%clk 0:03:02]} 10. Kh1 {[%clk 0:02:58]}  Nbd7 {[%clk 0:03:02]} 11. Bg5 {[%clk 0:02:50]}  Qb6 {[%clk 0:03:01]} 12. Nb3 {[%clk 0:02:47]}  a5 {[%clk 0:03:01]} 13. Qd2 {[%clk 0:02:22]}  a4 {[%clk 0:02:56]} 14. Be3 {[%clk 0:02:22]}  Qc7 {[%clk 0:02:48]} 15. Nd4 {[%clk 0:02:21]}  Nc5 {[%clk 0:02:46]} 16. Bf4 {[%clk 0:02:14]}  Nfd7 {[%clk 0:02:41]} 17. b4 {[%clk 0:01:57]}  axb3 {[%clk 0:02:35]} 18. Nxb3 {[%clk 0:01:57]}  Be5 {[%clk 0:02:26]} 19. Bxe5 {[%clk 0:01:53]}  dxe5 {[%clk 0:02:24]} 20. Rad1 {[%clk 0:01:40]}  Nxb3 {[%clk 0:02:07]} 21. axb3 {[%clk 0:01:40]}  Nc5 {[%clk 0:02:07]} 22. b4 {[%clk 0:01:36]}  Ne6 {[%clk 0:02:03]} 23. c5 {[%clk 0:01:36]}  Nd4 {[%clk 0:02:03]} 24. Bc4 {[%clk 0:01:36]}  Be6 {[%clk 0:01:51]} 25. Bxe6 {[%clk 0:01:35]}  Nxe6 {[%clk 0:01:47]} 26. Ne2 {[%clk 0:01:34]}  b6 {[%clk 0:01:39]} 27. Qd6 {[%clk 0:01:30]}  Qxd6 {[%clk 0:01:33]} 28. Rxd6 {[%clk 0:01:26]}  bxc5 {[%clk 0:01:33]} 29. bxc5 {[%clk 0:01:26]}  Rac8 {[%clk 0:01:30]} 30. Rc1 {[%clk 0:01:25]}  Red8 {[%clk 0:01:28]} 31. Kg1 {[%clk 0:01:21]}  Kf8 {[%clk 0:01:25]} 32. Kf2 {[%clk 0:01:21]}  Ke7 {[%clk 0:01:25]} 33. Rxd8 {[%clk 0:01:14]}  Rxd8 {[%clk 0:01:26]} 34. Ke3 {[%clk 0:01:14]}  Ra8 {[%clk 0:01:24]} 35. Rb1 {[%clk 0:01:08]}  Nxc5 {[%clk 0:01:23]} 36. Rb6 {[%clk 0:01:06]}  Kd6 {[%clk 0:01:20]} 37. h4 {[%clk 0:00:58]}  Ra3+ {[%clk 0:01:18]} 38. Kd2 {[%clk 0:00:56]}  Rb3 {[%clk 0:01:11]} 39. Rxb3 {[%clk 0:00:53]}  Nxb3+ {[%clk 0:01:12]} 40. Kc3 {[%clk 0:00:53]}  Nc5 {[%clk 0:01:11]} 41. Kc4 {[%clk 0:00:48]}  Nd7 {[%clk 0:01:10]} 42. Ng1 {[%clk 0:00:41]}  c5 {[%clk 0:00:56]} 43. Kb5 {[%clk 0:00:40]}  Nf8 {[%clk 0:00:55]} 44. Nh3 {[%clk 0:00:37]}  h6 {[%clk 0:00:48]} 45. Nf2 {[%clk 0:00:37]}  Ne6 {[%clk 0:00:39]} 46. Ng4 {[%clk 0:00:33]}  h5 {[%clk 0:00:33]} 47. Ne3 {[%clk 0:00:32]}  Nd4+ {[%clk 0:00:33]} 48. Kc4 {[%clk 0:00:32]}  Kc6 {[%clk 0:00:34]} 49. Nd5 {[%clk 0:00:27]}  Ne6 {[%clk 0:00:30]} 50. Ne7+ {[%clk 0:00:24]}  Kd6 {[%clk 0:00:29]} 51. Nc8+ {[%clk 0:00:23]}  Kc7 {[%clk 0:00:27]} 52. Ne7 {[%clk 0:00:22]}  Kd7 {[%clk 0:00:27]} 53. Ng8 {[%clk 0:00:19]}  Nf4 {[%clk 0:00:26]} 54. g3 {[%clk 0:00:16]}  Ne2 {[%clk 0:00:26]} 55. Kxc5 {[%clk 0:00:16]}  Nxg3 {[%clk 0:00:26]} 56. Kd5 {[%clk 0:00:16]}  Ne2 {[%clk 0:00:24]} 57. Kxe5 {[%clk 0:00:15]}  Ng1 {[%clk 0:00:24]} 58. f4 {[%clk 0:00:15]}  Nf3+ {[%clk 0:00:24]} 59. Kf6 {[%clk 0:00:15]}  Ke8 {[%clk 0:00:21]} 60. f5 {[%clk 0:00:14]}  Nxh4 {[%clk 0:00:20]} 61. Nh6 {[%clk 0:00:12]}  gxf5 {[%clk 0:00:19]} 62. exf5 {[%clk 0:00:12]}  Nf3 {[%clk 0:00:19]} 63. Nxf7 {[%clk 0:00:12]}  h4 {[%clk 0:00:20]} 64. Nh6 {[%clk 0:00:11]}  h3 {[%clk 0:00:19]} 65. Ng4 {[%clk 0:00:12]}  Kf8 {[%clk 0:00:20]} 66. Kg6 {[%clk 0:00:12]}  Ne5+ {[%clk 0:00:20]} 67. Nxe5 {[%clk 0:00:10]}  h2 {[%clk 0:00:21]} 68. f6 {[%clk 0:00:10]}  h1=Q {[%clk 0:00:20]} 69. Nd7+ {[%clk 0:00:10]}  Ke8 {[%clk 0:00:21]} 70. f7+ {[%clk 0:00:11]}  Kxd7 {[%clk 0:00:21]} 71. f8=Q {[%clk 0:00:11]}  Qg2+ {[%clk 0:00:22]} 72. Kh7 {[%clk 0:00:11]}  Qh3+ {[%clk 0:00:23]} 73. Kg8 {[%clk 0:00:12]}  Qg3+ {[%clk 0:00:19]} 74. Qg7+ {[%clk 0:00:13]}  Qxg7+ {[%clk 0:00:19]} 75. Kxg7 {[%clk 0:00:13]} 1/2-1/2


[Site "https://www.chess.com"]

[Event "Titled Tuesday Blitz November 07 Early 2023"]
[White "Rios Escobar, Adan"]
[Black "Janaszak, Dawid"]
[WhiteFideId "3403645"]
[BlackFideId "1119206"]
[WhiteElo "2430"]
[BlackElo "2642"]
[Result "0-1"]
[Round "3"]
[TimeControl "180+1"]
[Date "2023.11.07"]
[WhiteClock "0:00:00"]
[BlackClock "0:00:46"]
[Board "122"]

1. d4 {[%clk 0:02:56]}  d5 {[%clk 0:02:59]} 2. g3 {[%clk 0:02:55]}  Nf6 {[%clk 0:02:59]} 3. Nf3 {[%clk 0:02:52]}  c5 {[%clk 0:02:58]} 4. Bg2 {[%clk 0:02:51]}  Nc6 {[%clk 0:02:57]} 5. O-O {[%clk 0:02:50]}  e6 {[%clk 0:02:55]} 6. c4 {[%clk 0:02:47]}  dxc4 {[%clk 0:02:51]} 7. dxc5 {[%clk 0:02:43]}  Qxd1 {[%clk 0:02:50]} 8. Rxd1 {[%clk 0:02:44]}  Bxc5 {[%clk 0:02:51]} 9. Nbd2 {[%clk 0:02:44]}  c3 {[%clk 0:02:51]} 10. bxc3 {[%clk 0:02:45]}  O-O {[%clk 0:02:48]} 11. Nb3 {[%clk 0:02:44]}  Bb6 {[%clk 0:02:47]} 12. c4 {[%clk 0:02:45]}  e5 {[%clk 0:02:44]} 13. c5 {[%clk 0:02:40]}  Bc7 {[%clk 0:02:44]} 14. Bb2 {[%clk 0:02:38]}  Re8 {[%clk 0:02:39]} 15. e3 {[%clk 0:02:18]}  h6 {[%clk 0:02:35]} 16. h3 {[%clk 0:02:11]}  Bf5 {[%clk 0:02:34]} 17. g4 {[%clk 0:02:07]}  Be4 {[%clk 0:02:30]} 18. Rd2 {[%clk 0:02:00]}  a5 {[%clk 0:02:28]} 19. a4 {[%clk 0:01:49]}  Nb4 {[%clk 0:02:26]} 20. Nh4 {[%clk 0:01:37]}  Bc6 {[%clk 0:01:51]} 21. Nf5 {[%clk 0:01:30]}  Ne4 {[%clk 0:01:47]} 22. Bxe4 {[%clk 0:01:17]}  Bxe4 {[%clk 0:01:47]} 23. Nd6 {[%clk 0:01:17]}  Bxd6 {[%clk 0:01:46]} 24. cxd6 {[%clk 0:01:18]}  f6 {[%clk 0:01:38]} 25. Rc1 {[%clk 0:01:14]}  b6 {[%clk 0:01:36]} 26. Rc7 {[%clk 0:01:08]}  Nd5 {[%clk 0:01:28]} 27. Rc4 {[%clk 0:00:55]}  Bf3 {[%clk 0:01:22]} 28. Ba3 {[%clk 0:00:48]}  Red8 {[%clk 0:01:17]} 29. Kh2 {[%clk 0:00:44]}  h5 {[%clk 0:01:11]} 30. Kg3 {[%clk 0:00:41]}  hxg4 {[%clk 0:01:10]} 31. hxg4 {[%clk 0:00:42]}  Bh1 {[%clk 0:00:59]} 32. Rd1 {[%clk 0:00:34]}  Be4 {[%clk 0:00:48]} 33. Rxe4 {[%clk 0:00:05]}  Nc3 {[%clk 0:00:48]} 34. Red4 {[%clk 0:00:05]}  exd4 {[%clk 0:00:45]} 35. Rxd4 {[%clk 0:00:06]}  Ne2+ {[%clk 0:00:46]} 36. Kf3 {[%clk 0:00:03]}  Nxd4+ {[%clk 0:00:47]} 37. Nxd4 {[%clk 0:00:03]}  Rac8 {[%clk 0:00:47]} 38. Nb5 {[%clk 0:00:02]}  Rc4 {[%clk 0:00:46]} 39. g5 {[%clk 0:00:01]}  Kf7 {[%clk 0:00:45]} 40. gxf6 {[%clk 0:00:00]}  gxf6 {[%clk 0:00:46]} 0-1


[Site "https://www.chess.com"]

[Event "Titled Tuesday Blitz November 07 Early 2023"]
[White "WindWhistler11"]
[Black "Kavyev, Ruslan"]
[BlackFideId "34110981"]
[WhiteElo "2429"]
[BlackElo "2637"]
[Result "1-0"]
[Round "3"]
[TimeControl "180+1"]
[Date "2023.11.07"]
[WhiteClock "0:01:08"]
[BlackClock "0:01:13"]
[Board "123"]

1. Nf3 {[%clk 0:02:59]}  Nf6 {[%clk 0:02:56]} 2. g3 {[%clk 0:02:59]}  g6 {[%clk 0:02:53]} 3. Bg2 {[%clk 0:02:59]}  Bg7 {[%clk 0:02:54]} 4. c4 {[%clk 0:02:59]}  O-O {[%clk 0:02:55]} 5. O-O {[%clk 0:02:59]}  d6 {[%clk 0:02:52]} 6. b3 {[%clk 0:02:53]}  e5 {[%clk 0:02:51]} 7. Bb2 {[%clk 0:02:53]}  c5 {[%clk 0:02:52]} 8. e3 {[%clk 0:02:50]}  Nc6 {[%clk 0:02:52]} 9. Nc3 {[%clk 0:02:48]}  Bf5 {[%clk 0:02:47]} 10. d3 {[%clk 0:02:44]}  Re8 {[%clk 0:02:44]} 11. Nh4 {[%clk 0:02:39]}  Be6 {[%clk 0:02:42]} 12. Nd5 {[%clk 0:02:37]}  Rb8 {[%clk 0:02:36]} 13. a3 {[%clk 0:02:36]}  Ne7 {[%clk 0:02:33]} 14. e4 {[%clk 0:02:29]}  Nc6 {[%clk 0:02:30]} 15. Kh1 {[%clk 0:02:27]}  Nd4 {[%clk 0:02:29]} 16. Bxd4 {[%clk 0:02:27]}  exd4 {[%clk 0:02:28]} 17. f4 {[%clk 0:02:24]}  Bxd5 {[%clk 0:02:22]} 18. cxd5 {[%clk 0:02:22]}  Qd7 {[%clk 0:02:16]} 19. Bf3 {[%clk 0:02:01]}  b5 {[%clk 0:02:13]} 20. Rc1 {[%clk 0:01:57]}  Rbc8 {[%clk 0:02:09]} 21. g4 {[%clk 0:01:51]}  h6 {[%clk 0:02:02]} 22. g5 {[%clk 0:01:46]}  hxg5 {[%clk 0:02:01]} 23. fxg5 {[%clk 0:01:47]}  Nh7 {[%clk 0:02:02]} 24. Bg4 {[%clk 0:01:47]}  Qe7 {[%clk 0:01:59]} 25. Bxc8 {[%clk 0:01:46]}  Rxc8 {[%clk 0:02:00]} 26. Qg4 {[%clk 0:01:44]}  Re8 {[%clk 0:01:55]} 27. Nf3 {[%clk 0:01:41]}  a5 {[%clk 0:01:52]} 28. a4 {[%clk 0:01:39]}  bxa4 {[%clk 0:01:50]} 29. bxa4 {[%clk 0:01:39]}  Rb8 {[%clk 0:01:51]} 30. Rb1 {[%clk 0:01:37]}  Rb4 {[%clk 0:01:51]} 31. Rxb4 {[%clk 0:01:29]}  axb4 {[%clk 0:01:51]} 32. a5 {[%clk 0:01:25]}  Nf8 {[%clk 0:01:43]} 33. Qc8 {[%clk 0:01:18]}  Qa7 {[%clk 0:01:29]} 34. a6 {[%clk 0:01:16]}  c4 {[%clk 0:01:29]} 35. Qb7 {[%clk 0:01:12]}  Qc5 {[%clk 0:01:19]} 36. a7 {[%clk 0:01:09]}  cxd3 {[%clk 0:01:19]} 37. a8=Q {[%clk 0:01:09]}  Qc2 {[%clk 0:01:13]} 38. Qaa7 {[%clk 0:01:08]} 1-0


[Site "https://www.chess.com"]

[Event "Titled Tuesday Blitz November 07 Early 2023"]
[White "Kislinsky, Alexey"]
[Black "Gu, Xiaobing"]
[WhiteFideId "14108801"]
[BlackFideId "8602611"]
[WhiteElo "2636"]
[BlackElo "2427"]
[Result "1-0"]
[Round "3"]
[TimeControl "180+1"]
[Date "2023.11.07"]
[WhiteClock "0:00:46"]
[BlackClock "0:00:00"]
[Board "124"]

1. e4 {[%clk 0:03:00]}  c5 {[%clk 0:02:56]} 2. c3 {[%clk 0:02:58]}  Nf6 {[%clk 0:02:54]} 3. e5 {[%clk 0:02:58]}  Nd5 {[%clk 0:02:54]} 4. Bc4 {[%clk 0:02:59]}  e6 {[%clk 0:02:52]} 5. Nf3 {[%clk 0:02:57]}  b6 {[%clk 0:02:52]} 6. Bxd5 {[%clk 0:02:55]}  exd5 {[%clk 0:02:51]} 7. d4 {[%clk 0:02:56]}  d6 {[%clk 0:02:46]} 8. Bg5 {[%clk 0:02:42]}  Be7 {[%clk 0:02:38]} 9. Bxe7 {[%clk 0:02:41]}  Qxe7 {[%clk 0:02:37]} 10. O-O {[%clk 0:02:38]}  dxe5 {[%clk 0:02:11]} 11. Nxe5 {[%clk 0:02:37]}  O-O {[%clk 0:02:08]} 12. Re1 {[%clk 0:02:36]}  Be6 {[%clk 0:02:07]} 13. Na3 {[%clk 0:02:32]}  Nd7 {[%clk 0:02:04]} 14. Qd2 {[%clk 0:02:26]}  Nxe5 {[%clk 0:01:53]} 15. Rxe5 {[%clk 0:02:25]}  Rad8 {[%clk 0:01:52]} 16. Rae1 {[%clk 0:02:24]}  Qd7 {[%clk 0:01:41]} 17. Nc2 {[%clk 0:02:23]}  h6 {[%clk 0:01:28]} 18. h3 {[%clk 0:02:17]}  a5 {[%clk 0:01:27]} 19. R1e2 {[%clk 0:01:48]}  a4 {[%clk 0:01:16]} 20. Ne1 {[%clk 0:01:47]}  a3 {[%clk 0:01:03]} 21. b3 {[%clk 0:01:40]}  cxd4 {[%clk 0:00:57]} 22. Qxd4 {[%clk 0:01:39]}  Rc8 {[%clk 0:00:56]} 23. Nd3 {[%clk 0:01:38]}  Qc7 {[%clk 0:00:44]} 24. Rc2 {[%clk 0:01:36]}  Rfe8 {[%clk 0:00:39]} 25. Nf4 {[%clk 0:01:34]}  Qc5 {[%clk 0:00:27]} 26. Qxc5 {[%clk 0:01:23]}  Rxc5 {[%clk 0:00:25]} 27. Ne2 {[%clk 0:01:17]}  Rec8 {[%clk 0:00:24]} 28. Re3 {[%clk 0:01:10]}  Bf5 {[%clk 0:00:23]} 29. Rd2 {[%clk 0:01:09]}  Bb1 {[%clk 0:00:19]} 30. f3 {[%clk 0:01:08]}  b5 {[%clk 0:00:19]} 31. b4 {[%clk 0:01:07]}  R5c7 {[%clk 0:00:18]} 32. Kf2 {[%clk 0:01:05]}  Kf8 {[%clk 0:00:18]} 33. Ke1 {[%clk 0:01:05]}  Re8 {[%clk 0:00:18]} 34. Rxe8+ {[%clk 0:01:04]}  Kxe8 {[%clk 0:00:18]} 35. Kd1 {[%clk 0:01:05]}  Re7 {[%clk 0:00:16]} 36. Kc1 {[%clk 0:00:58]}  Bf5 {[%clk 0:00:14]} 37. Nd4 {[%clk 0:00:46]}  Bd7 {[%clk 0:00:14]} 38. Re2 {[%clk 0:00:46]}  Re3 {[%clk 0:00:00]} 39. Rxe3+ {[%clk 0:00:46]} 1-0


[Site "https://www.chess.com"]

[Event "Titled Tuesday Blitz November 07 Early 2023"]
[White "Doctor_Luber"]
[Black "ExchangeAB"]
[WhiteElo "2632"]
[BlackElo "2418"]
[Result "0-1"]
[Round "3"]
[TimeControl "180+1"]
[Date "2023.11.07"]
[WhiteClock "0:00:11"]
[BlackClock "0:00:20"]
[Board "126"]

1. e4 {[%clk 0:02:57]}  c6 {[%clk 0:02:59]} 2. d4 {[%clk 0:02:56]}  d5 {[%clk 0:03:00]} 3. exd5 {[%clk 0:02:56]}  cxd5 {[%clk 0:03:00]} 4. c3 {[%clk 0:02:56]}  Nf6 {[%clk 0:03:01]} 5. Bd3 {[%clk 0:02:53]}  Nc6 {[%clk 0:03:01]} 6. h3 {[%clk 0:02:52]}  g6 {[%clk 0:03:01]} 7. Nf3 {[%clk 0:02:52]}  Bf5 {[%clk 0:03:01]} 8. O-O {[%clk 0:02:52]}  Bxd3 {[%clk 0:03:01]} 9. Qxd3 {[%clk 0:02:53]}  Bg7 {[%clk 0:03:01]} 10. Bf4 {[%clk 0:02:52]}  O-O {[%clk 0:03:02]} 11. Nbd2 {[%clk 0:02:52]}  e6 {[%clk 0:03:01]} 12. Rfe1 {[%clk 0:02:52]}  a6 {[%clk 0:03:00]} 13. a3 {[%clk 0:02:51]}  b5 {[%clk 0:03:00]} 14. b4 {[%clk 0:02:51]}  Nd7 {[%clk 0:02:55]} 15. Nb3 {[%clk 0:02:50]}  Nb6 {[%clk 0:02:55]} 16. Nc5 {[%clk 0:02:50]}  Nc4 {[%clk 0:02:55]} 17. Re2 {[%clk 0:02:40]}  Re8 {[%clk 0:02:46]} 18. a4 {[%clk 0:02:26]}  bxa4 {[%clk 0:02:42]} 19. Rxa4 {[%clk 0:02:24]}  Qc8 {[%clk 0:02:28]} 20. Rea2 {[%clk 0:02:11]}  a5 {[%clk 0:02:26]} 21. bxa5 {[%clk 0:01:56]}  Rxa5 {[%clk 0:02:23]} 22. Rxa5 {[%clk 0:01:55]}  N6xa5 {[%clk 0:02:24]} 23. h4 {[%clk 0:01:44]}  h5 {[%clk 0:02:22]} 24. Re2 {[%clk 0:01:39]}  Nb7 {[%clk 0:02:17]} 25. Nxb7 {[%clk 0:01:35]}  Qxb7 {[%clk 0:02:18]} 26. Ne5 {[%clk 0:01:35]}  Nxe5 {[%clk 0:02:17]} 27. Bxe5 {[%clk 0:01:36]}  Rc8 {[%clk 0:02:09]} 28. Bxg7 {[%clk 0:01:34]}  Kxg7 {[%clk 0:02:10]} 29. Qg3 {[%clk 0:01:30]}  Qc7 {[%clk 0:02:09]} 30. Re3 {[%clk 0:01:24]}  Qxg3 {[%clk 0:02:08]} 31. Rxg3 {[%clk 0:01:25]}  Rc7 {[%clk 0:02:08]} 32. Kf1 {[%clk 0:01:25]}  Kf6 {[%clk 0:02:07]} 33. Rf3+ {[%clk 0:01:25]}  Ke7 {[%clk 0:02:08]} 34. Ke2 {[%clk 0:01:25]}  Ra7 {[%clk 0:02:08]} 35. Kd3 {[%clk 0:01:25]}  Ra1 {[%clk 0:02:08]} 36. g3 {[%clk 0:01:25]}  Rf1 {[%clk 0:02:04]} 37. Ke2 {[%clk 0:01:25]}  Rc1 {[%clk 0:02:04]} 38. Kd2 {[%clk 0:01:25]}  Rf1 {[%clk 0:02:04]} 39. Ke2 {[%clk 0:01:26]}  Rb1 {[%clk 0:02:05]} 40. Kd2 {[%clk 0:01:26]}  f6 {[%clk 0:02:01]} 41. Re3 {[%clk 0:01:25]}  Rf1 {[%clk 0:02:00]} 42. Ke2 {[%clk 0:01:25]}  Ra1 {[%clk 0:02:00]} 43. Kd2 {[%clk 0:01:26]}  Kd6 {[%clk 0:02:00]} 44. Kd3 {[%clk 0:01:25]}  e5 {[%clk 0:01:59]} 45. dxe5+ {[%clk 0:01:25]}  fxe5 {[%clk 0:02:00]} 46. Re2 {[%clk 0:01:25]}  e4+ {[%clk 0:01:50]} 47. Ke3 {[%clk 0:01:10]}  Ke5 {[%clk 0:01:47]} 48. f4+ {[%clk 0:00:57]}  Kf5 {[%clk 0:01:41]} 49. Rd2 {[%clk 0:00:56]}  Ra5 {[%clk 0:01:30]} 50. Rb2 {[%clk 0:00:42]}  Kg4 {[%clk 0:01:25]} 51. Rb6 {[%clk 0:00:42]}  Kxg3 {[%clk 0:01:24]} 52. Rxg6+ {[%clk 0:00:42]}  Kxh4 {[%clk 0:01:25]} 53. f5 {[%clk 0:00:42]}  Ra1 {[%clk 0:01:10]} 54. Ke2 {[%clk 0:00:38]}  Rc1 {[%clk 0:01:02]} 55. f6 {[%clk 0:00:21]}  Rxc3 {[%clk 0:01:01]} 56. Rg2 {[%clk 0:00:21]}  Rc8 {[%clk 0:00:45]} 57. Ke3 {[%clk 0:00:20]}  Rf8 {[%clk 0:00:45]} 58. Rg6 {[%clk 0:00:19]}  Kh3 {[%clk 0:00:42]} 59. Kf2 {[%clk 0:00:19]}  h4 {[%clk 0:00:39]} 60. Kg1 {[%clk 0:00:19]}  d4 {[%clk 0:00:37]} 61. Kf2 {[%clk 0:00:19]}  e3+ {[%clk 0:00:37]} 62. Kf3 {[%clk 0:00:19]}  Rf7 {[%clk 0:00:32]} 63. Rh6 {[%clk 0:00:17]}  Rf8 {[%clk 0:00:25]} 64. Rg6 {[%clk 0:00:17]}  Kh2 {[%clk 0:00:26]} 65. Ke2 {[%clk 0:00:15]}  h3 {[%clk 0:00:24]} 66. Kd3 {[%clk 0:00:15]}  Rf7 {[%clk 0:00:19]} 67. Ke2 {[%clk 0:00:16]}  Ra7 {[%clk 0:00:19]} 68. Rg7 {[%clk 0:00:15]}  Ra2+ {[%clk 0:00:20]} 69. Ke1 {[%clk 0:00:15]}  Rf2 {[%clk 0:00:20]} 70. f7 {[%clk 0:00:15]}  d3 {[%clk 0:00:21]} 71. Rg1 {[%clk 0:00:14]}  d2+ {[%clk 0:00:20]} 72. Kd1 {[%clk 0:00:14]}  Kxg1 {[%clk 0:00:20]} 73. Kc2 {[%clk 0:00:14]}  Rxf7 {[%clk 0:00:20]} 74. Kd1 {[%clk 0:00:14]}  Kf2 {[%clk 0:00:20]} 75. Kc2 {[%clk 0:00:15]}  Ke2 {[%clk 0:00:21]} 76. Kc3 {[%clk 0:00:11]}  d1=Q {[%clk 0:00:20]} 0-1


[Site "https://www.chess.com"]

[Event "Titled Tuesday Blitz November 07 Early 2023"]
[White "Gubajdullin, Alexei"]
[Black "Xie, Bryan"]
[WhiteFideId "4141202"]
[BlackFideId "30941296"]
[WhiteElo "2623"]
[BlackElo "2413"]
[Result "1-0"]
[Round "3"]
[TimeControl "180+1"]
[Date "2023.11.07"]
[WhiteClock "0:00:39"]
[BlackClock "0:00:12"]
[Board "130"]

1. d4 {[%clk 0:03:00]}  Nf6 {[%clk 0:02:50]} 2. Nf3 {[%clk 0:03:00]}  d5 {[%clk 0:02:49]} 3. Bf4 {[%clk 0:03:00]}  c5 {[%clk 0:02:49]} 4. e3 {[%clk 0:03:00]}  Nc6 {[%clk 0:02:49]} 5. Nbd2 {[%clk 0:03:00]}  e6 {[%clk 0:02:48]} 6. c3 {[%clk 0:03:00]}  cxd4 {[%clk 0:02:49]} 7. exd4 {[%clk 0:03:00]}  Nh5 {[%clk 0:02:49]} 8. Bg5 {[%clk 0:02:59]}  f6 {[%clk 0:02:31]} 9. Be3 {[%clk 0:02:57]}  Bd6 {[%clk 0:02:30]} 10. g3 {[%clk 0:02:56]}  O-O {[%clk 0:02:24]} 11. Bg2 {[%clk 0:02:56]}  g6 {[%clk 0:02:24]} 12. O-O {[%clk 0:02:53]}  f5 {[%clk 0:02:24]} 13. Bh6 {[%clk 0:02:53]}  Rf7 {[%clk 0:02:23]} 14. Re1 {[%clk 0:02:48]}  f4 {[%clk 0:02:21]} 15. Ng5 {[%clk 0:02:46]}  Re7 {[%clk 0:02:19]} 16. Nxe6 {[%clk 0:02:39]}  Bxe6 {[%clk 0:02:16]} 17. Rxe6 {[%clk 0:02:39]}  Rxe6 {[%clk 0:02:17]} 18. Bxd5 {[%clk 0:02:39]}  Qe7 {[%clk 0:02:08]} 19. Qb3 {[%clk 0:02:31]}  Re8 {[%clk 0:01:56]} 20. Re1 {[%clk 0:02:29]}  Nd8 {[%clk 0:01:55]} 21. Bxe6+ {[%clk 0:02:27]}  Nxe6 {[%clk 0:01:52]} 22. d5 {[%clk 0:02:27]}  fxg3 {[%clk 0:01:53]} 23. hxg3 {[%clk 0:02:27]}  Bxg3 {[%clk 0:01:44]} 24. fxg3 {[%clk 0:02:09]}  Qc5+ {[%clk 0:01:38]} 25. Be3 {[%clk 0:02:07]}  Qd6 {[%clk 0:01:33]} 26. Ne4 {[%clk 0:02:01]}  Qe5 {[%clk 0:01:31]} 27. Bf2 {[%clk 0:01:54]}  Neg7 {[%clk 0:01:15]} 28. d6+ {[%clk 0:01:52]}  Kh8 {[%clk 0:01:14]} 29. d7 {[%clk 0:01:47]}  Rd8 {[%clk 0:01:08]} 30. Qf7 {[%clk 0:01:33]}  Qf5 {[%clk 0:00:54]} 31. Nf6 {[%clk 0:01:15]}  Nxf6 {[%clk 0:00:42]} 32. Bd4 {[%clk 0:00:47]}  Qxd7 {[%clk 0:00:12]} 33. Re7 {[%clk 0:00:39]} 1-0


[Site "https://www.chess.com"]

[Event "Titled Tuesday Blitz November 07 Early 2023"]
[White "Cristi_Coca"]
[Black "Arabidze, Meri"]
[BlackFideId "13604040"]
[WhiteElo "2413"]
[BlackElo "2620"]
[Result "0-1"]
[Round "3"]
[TimeControl "180+1"]
[Date "2023.11.07"]
[WhiteClock "0:01:12"]
[BlackClock "0:01:07"]
[Board "131"]

1. e4 {[%clk 0:03:00]}  c5 {[%clk 0:03:00]} 2. c3 {[%clk 0:03:00]}  e6 {[%clk 0:02:59]} 3. d4 {[%clk 0:03:00]}  d5 {[%clk 0:02:59]} 4. exd5 {[%clk 0:03:00]}  exd5 {[%clk 0:03:00]} 5. Nf3 {[%clk 0:03:00]}  Nc6 {[%clk 0:03:00]} 6. Bd3 {[%clk 0:02:57]}  Bd6 {[%clk 0:03:00]} 7. O-O {[%clk 0:02:57]}  Nge7 {[%clk 0:02:55]} 8. dxc5 {[%clk 0:02:53]}  Bxc5 {[%clk 0:02:55]} 9. Nbd2 {[%clk 0:02:53]}  O-O {[%clk 0:02:52]} 10. Nb3 {[%clk 0:02:53]}  Bb6 {[%clk 0:02:52]} 11. h3 {[%clk 0:02:52]}  Ng6 {[%clk 0:02:48]} 12. Bc2 {[%clk 0:02:46]}  a6 {[%clk 0:02:31]} 13. Nbd4 {[%clk 0:02:42]}  Bd7 {[%clk 0:02:31]} 14. Be3 {[%clk 0:02:38]}  Bc7 {[%clk 0:02:30]} 15. Qd3 {[%clk 0:02:35]}  Qf6 {[%clk 0:02:26]} 16. Rad1 {[%clk 0:02:32]}  Rfe8 {[%clk 0:02:26]} 17. Rfe1 {[%clk 0:02:31]}  h6 {[%clk 0:02:11]} 18. Nf5 {[%clk 0:02:08]}  Nce5 {[%clk 0:01:49]} 19. Nxe5 {[%clk 0:02:04]}  Qxe5 {[%clk 0:01:42]} 20. Ng3 {[%clk 0:01:51]}  Bb5 {[%clk 0:01:14]} 21. Qxd5 {[%clk 0:01:47]}  Qxd5 {[%clk 0:01:15]} 22. Rxd5 {[%clk 0:01:47]}  Bc6 {[%clk 0:01:14]} 23. Rdd1 {[%clk 0:01:45]}  Nh4 {[%clk 0:01:14]} 24. Nf5 {[%clk 0:01:22]}  Nxg2 {[%clk 0:01:11]} 25. Nd6 {[%clk 0:01:15]}  Nxe1 {[%clk 0:01:07]} 26. Nxe8 {[%clk 0:01:12]}  Nf3+ {[%clk 0:01:07]} 0-1


[Site "https://www.chess.com"]